Workbook

Sheet BB
A1: BEGINNER BANDO - 2017 WINTER HEAT POINTS
B2: CAR NUMBER | C2: DRIVERS NAME | D2: HOME TOWN | F2: 12/03/16 FINISH | G2: 12/10/16 FINISH | H2: 12/10/16 FINISH | I2: 01/14/17 FINISH | J2: RAIN OUT | K2: 01/28/17 FINISH | L2: 01/29/17 FINISH | M2: 02/04/17 FINISH
A3: 1 | B3: 1 | C3: Carter Russo | D3: Rougemont, NC | F3: X | G3: X | H3: X | I3: X | K3: X | L3: X | M3: X
A4: 2 | B4: 5 | C4: Zac Fowler | D4: Concord, NC | F4: 1
A5: 3 | B5: 9 | C5: Santiago Hill | D5: Mint Hill, NC | F5: X | G5: X | H5: X
A6: 4 | B6: 15 | C6: Logan Clark | D6: Mechanicsville, VA | F6: X | G6: X | H6: X | I6: X | K6: X | L6: X | M6: X
A7: 5 | B7: 23 | C7: Emily Hedstrom | D7: Rockhill, SC | I7: X | K7: X | L7: X | M7: X
A8: 6 | B8: 56 | C8: Ethan Norfleet | D8: Somerset, KY | F8: X | G8: 1 | H8: 1
A9: 7 | B9: 77 | C9: Carson Ramsey | D9: Charlotte, NC | F9: X | G9: X | H9: X | I9: X | K9: 1 | L9: 1 | M9: 1
A10: 8 | B10: 81 | C10: Caleb Williams | D10: Lamar, SC | I10: 1 | K10: X | L10: X
A11: 9
A12: 10
A13: 11
A14: 12
A15: 13
A16: 14
A17: 15
A18: 16
A19: 17
A20: 18
A21: 19
A22: 20

Sheet Bandits
A1: BANDIT - 2017 WINTER HEAT POINTS
A2: CHAMPIONSHIP STANDING | B2: CAR NUMBER | C2: DRIVERS NAME | D2: HOME TOWN | F2: TOTAL POINTS | G2: 12/03/16 FINISH | H2: 12/10/16 FINISH | I2: 01/14/17 FINISH | J2: RAIN OUT | K2: 01/28/17 FINISH | L2: 01/29/17 FINISH | M2: 02/04/17 FINISH | N2: 02/04/17 FINISH | P2: 12/03/16 FINISH | Q2: 12/10/16 FINISH | R2: 01/14/17 FINISH | S2: RAIN OUT | T2: 01/28/17 FINISH | U2: 01/29/17 FINISH | V2: 02/04/17 FINISH | W2: 02/04/17 FINISH
A3: 1 | B3: 4 | C3: Leland Honeyman | D3: Mooresville, NC | F3: =SUM(P3+Q3+R3+S3+T3+U3+V3+W3) -> 597 | G3: 2 | H3: 1 | I3: 1 | K3: 1 | M3: 1 | N3: 1 | P3: 97 | Q3: 100 | R3: 100 | T3: 100 | V3: 100 | W3: 100
A4: 2 | B4: 4E | C4: Parker Eatmon | D4: Wilson, NC | F4: =SUM(P4+Q4+R4+S4+T4+U4+V4+W4) -> 562 | G4: 1 | H4: 5 | I4: 11 | K4: 2 | L4: 6 | M4: 2 | N4: 3 | P4: 100 | Q4: 88 | R4: 0 | T4: 97 | U4: 86 | V4: 97 | W4: 94
A5: 3 | B5: 28 | C5: Landon Rapp | D5: Concord, NC | F5: =SUM(P5+Q5+R5+S5+T5+U5+V5+W5) -> 549 | H5: 4 | I5: 4 | K5: 8 | L5: 3 | M5: 3 | N5: 2 | Q5: 91 | R5: 91 | T5: 82 | U5: 94 | V5: 94 | W5: 97
A6: 5 | B6: 5 | C6: Zac Fowler | D6: Concord, NC | F6: =SUM(P6+Q6+R6+S6+T6+U6+V6+W6) -> 515 | H6: 7 | I6: 6 | K6: 5 | L6: 4 | M6: 8 | N6: 7 | Q6: 84 | R6: 86 | T6: 88 | U6: 91 | V6: 82 | W6: 84
A7: 6 | B7: 16 | C7: Stanley Hayes | D7: Concord, NC | F7: =SUM(P7+Q7+R7+S7+T7+U7+V7+W7) -> 497 | G7: 7 | H7: 2 | I7: 5 | K7: 12 | L7: 9 | M7: 12 | N7: 12 | P7: 84 | Q7: 97 | R7: 88 | T7: 0 | U7: 80 | V7: 74 | W7: 74
A8: 8 | B8: 18 | C8: Truett Miranda | D8: Concord, NC | F8: =SUM(P8+Q8+R8+S8+T8+U8+V8+W8) -> 484 | G8: 5 | H8: 10 | I8: 10 | K8: 11 | L8: 5 | M8: 11 | N8: 11 | P8: 88 | Q8: 78 | R8: 78 | T8: 0 | U8: 88 | V8: 76 | W8: 76
A9: 4 | B9: 32 | C9: Zack Miracle | D9: Indian Trail, NC | F9: =SUM(P9+Q9+R9+S9+T9+U9+V9+N9) -> 459 | G9: 4 | H9: 3 | I9: 7 | K9: 3 | L9: 10 | M9: 5 | N9: 8 | P9: 91 | Q9: 94 | R9: 84 | T9: 94 | U9: 0 | V9: 88 | W9: 82
A10: 9 | B10: 3 | C10: Jacob Putman | D10: Centreville, VA | F10: =SUM(P10+Q10+R10+S10+T10+U10+V10+W10) -> 443 | I10: 3 | K10: 4 | L10: 7 | M10: 6 | N10: 5 | R10: 94 | T10: 91 | U10: 84 | V10: 86 | W10: 88
A11: 7 | B11: 14 | C11: Conner Jones | D11: Fredericksburg, VA | F11: =SUM(P11+Q11+R11+S11+T11+U11+V11+N11) -> 434 | G11: 3 | H11: 9 | I11: 8 | K11: 6 | L11: 8 | M11: 7 | N11: 6 | P11: 94 | Q11: 0 | R11: 82 | T11: 86 | U11: 82 | V11: 84 | W11: 86
A12: 10 | B12: 9 | C12: Santiago Hill | D12: Mint Hill, NC | F12: =SUM(P12+Q12+R12+S12+T12+U12+V12+W12) -> 388 | I12: 9 | K12: 9 | L12: 13 | M12: 10 | N12: 10 | R12: 80 | T12: 80 | U12: 72 | V12: 78 | W12: 78
A13: 14 | B13: 42 | C13: Jacob Bradley | D13: Chapel Hill, NC | F13: =SUM(P13+Q13+R13+S13+T13+U13+V13+W13) -> 308 | K13: 13 | L13: 11 | M13: 9 | N13: 9 | T13: 72 | U13: 76 | V13: 80 | W13: 80
A14: 11 | B14: 35 | C14: Caden Kvapil | D14: Mooresville, NC | F14: =SUM(P14+Q14+R14+S14+T14+U14+V14+N14) -> 292 | I14: 2 | L14: 1 | M14: 4 | N14: 4 | R14: 97 | U14: 100 | V14: 91 | W14: 91
A15: 12 | B15: 04 | C15: Nathan Langille | D15: Coldbrook, NS | F15: =SUM(P15+Q15+R15+S15+T15+U15+V15+W15) -> 181 | K15: 7 | L15: 2 | T15: 84 | U15: 97
A16: 13 | B16: 11 | C16: Brent Crews | D16: Denver, NC | F16: =SUM(P16+Q16+R16+S16+T16+U16+V16+W16) -> 152 | K16: 10 | L16: 12 | T16: 78 | U16: 74
A17: 15 | B17: 24 | C17: Mason Dejarnett | D17: Monroe, NC | F17: =SUM(P17+Q17+R17+S17+T17+U17+V17+W17) -> 86 | G17: 6 | P17: 86
A18: 16 | B18: 44J | C18: Jason Chapman | D18: Ellington, CT | F18: =SUM(P18+Q18+R18+S18+T18+U18+V18+N18) -> 86 | H18: 6 | Q18: 86
A19: 17 | B19: 41 | C19: Tyler Chapman | D19: Ellington, CT | F19: =SUM(P19+Q19+R19+S19+T19+U19+V19+W19) -> 82 | H19: 8 | Q19: 82
A20: 18 | B20: 31 | C20: Cole Bruce | D20: Fredericksburg, VA | F20: =SUM(P20+Q20+R20+S20+T20+U20+V20+W20) -> 76 | H20: 11 | Q20: 76
A21: 19 | F21: =SUM(P21+Q21+R21+S21+T21+U21+V21+W21) -> 0
A22: 20 | F22: =SUM(P22+Q22+R22+S22+T22+U22+V22+W22) -> 0
A23: *Ties will be broken by: 1) number of wins, 2) number of 2nd places, 3) number of third place finishes, etc., until the tie is broken).

Sheet Outlaws
A1: OUTLAW - 2017 WINTER HEAT POINTS
A2: CHAMPIONSHIP STANDING | B2: CAR NUMBER | C2: DRIVERS NAME | D2: HOME TOWN | F2: TOTAL POINTS | G2: 12/03/16 FINISH | H2: 12/10/16 FINISH | I2: 01/14/17 FINISH | J2: RAIN OUT | K2: 01/28/17 FINISH | L2: 01/29/17 FINISH | M2: 02/04/17 FINISH | N2: 02/04/17 FINISH | P2: 12/03/16 FINISH | Q2: 12/10/16 FINISH | R2: 01/14/17 FINISH | S2: RAIN OUT | T2: 01/28/17 FINISH | U2: 01/29/17 FINISH | V2: 02/04/17 FINISH | W2: 02/04/17 FINISH
A3: 1 | B3: 67 | C3: Cameron Bolin | D3: Sharon, SC | F3: =SUM(P3+Q3+R3+S3+T3+U3+V3+W3) -> 597 | G3: 2 | H3: 1 | I3: 1 | K3: 2 | L3: 1 | M3: 1 | N3: 1 | P3: 0 | Q3: 100 | R3: 100 | T3: 97 | U3: 100 | V3: 100 | W3: 100
A4: 2 | B4: 19 | C4: Tommy Good | D4: Huntersville, NC | F4: =SUM(P4+Q4+R4+S4+T4+U4+V4+W4) -> 588 | G4: 1 | H4: 2 | I4: 2 | K4: 1 | L4: 2 | M4: 2 | N4: 3 | P4: 100 | Q4: 97 | R4: 97 | T4: 100 | U4: 97 | V4: 97 | W4: 0
A5: 3 | B5: 6L | C5: Garrett Lowe | D5: Gastonia, NC | F5: =SUM(P5+Q5+R5+S5+T5+U5+V5+W5) -> 558 | G5: 5 | H5: 4 | I5: 3 | K5: 3 | L5: 3 | M5: 3 | N5: 4 | P5: 0 | Q5: 91 | R5: 94 | T5: 94 | U5: 94 | V5: 94 | W5: 91
A6: 4 | B6: 8 | C6: Trevor Wester | D6: Canton, NC | F6: =SUM(P6+Q6+R6+S6+T6+U6+V6+W6) -> 509 | G6: 4 | H6: 6 | I6: 11 | K6: 7 | L6: 12 | M6: 5 | N6: 7 | P6: 91 | Q6: 86 | R6: 76 | T6: 84 | U6: 0 | V6: 88 | W6: 84
A7: 5 | B7: 54 | C7: Josh Speas | D7: Concord, NC | F7: =SUM(P7+Q7+R7+S7+T7+U7+V7+W7) -> 480 | H7: 5 | I7: 6 | K7: 14 | L7: 9 | M7: 15 | N7: 5 | Q7: 88 | R7: 86 | T7: 70 | U7: 80 | V7: 68 | W7: 88
A8: 6 | B8: 33 | C8: Franklin Caricofe | D8: New Hope, VA | F8: =SUM(P8+Q8+R8+S8+T8+U8+V8+W8) -> 461 | I8: 4 | K8: 4 | L8: 4 | M8: 4 | N8: 2 | R8: 91 | T8: 91 | U8: 91 | V8: 91 | W8: 97
A9: 7 | B9: 4 | C9: Cameron Murray | D9: Fuquay-Varina, NC | F9: =SUM(P9+Q9+R9+S9+T9+U9+V9+W9) -> 430 | I9: 8 | K9: 5 | L9: 5 | M9: 6 | N9: 6 | R9: 82 | T9: 88 | U9: 88 | V9: 86 | W9: 86
A10: 8 | B10: 12 | C10: Jonathan Lesik | D10: Lancaster, SC | F10: =SUM(P10+Q10+R10+S10+T10+U10+V10+W10) -> 410 | H10: 7 | K10: 6 | L10: 10 | M10: 7 | N10: 10 | Q10: 84 | T10: 86 | U10: 78 | V10: 84 | W10: 78
A11: 9 | B11: 18 | C11: Emily Day | D11: Garner, NC | F11: =SUM(P11+Q11+R11+S11+T11+U11+V11+W11) -> 404 | I11: 7 | K11: 11 | L11: 8 | M11: 9 | N11: 8 | R11: 84 | T11: 76 | U11: 82 | V11: 80 | W11: 82
A12: 10 | B12: 13 | C12: Luke Akers | D12: Lexington, NC | F12: =SUM(P12+Q12+R12+S12+T12+U12+V12+W12) -> 403 | H12: 3 | I12: 5 | K12: 16 | M12: 10 | N12: 11 | Q12: 94 | R12: 88 | T12: 67 | V12: 78 | W12: 76
A13: 11 | B13: 7 | C13: Ben Johnson | D13: Huntersville, NC | F13: =SUM(P13+Q13+R13+S13+T13+U13+V13+W13) -> 372 | G13: 8 | I13: 12 | L13: 13 | M13: 13 | N13: 13 | P13: 82 | R13: 74 | U13: 72 | V13: 72 | W13: 72
A14: 12 | B14: 56 | C14: Ethan Norfleet | D14: Somerset, KY | F14: =SUM(P14+Q14+R14+S14+T14+U14+V14+W14) -> 312 | I14: 13 | K14: 8 | L14: 11 | M14: 8 | R14: 72 | T14: 82 | U14: 76 | V14: 82
A15: 13 | B15: 1 | C15: Ali Prew | D15: Huntersville, NC | F15: =SUM(P15+Q15+R15+S15+T15+U15+V15+W15) -> 288 | K15: 12 | L15: 14 | M15: 11 | N15: 15 | T15: 74 | U15: 70 | V15: 76 | W15: 68
A16: 14 | B16: 51 | C16: Ethan Johnson | D16: Apex, NC | F16: =SUM(P16+Q16+R16+S16+T16+U16+V16+W16) -> 234 | I16: 9 | K16: 15 | L16: 6 | R16: 80 | T16: 68 | U16: 86
A17: 15 | B17: 03 | C17: Kyle Campbell | D17: Concord, NC | F17: =SUM(P17+Q17+R17+S17+T17+U17+V17+W17) -> 234 | K17: 9 | M17: 12 | N17: 9 | T17: 80 | V17: 74 | W17: 80
A18: 16 | B18: 007 | C18: David Sullivan | D18: Mooresville, NC | F18: =SUM(P18+Q18+R18+S18+T18+U18+V18+W18) -> 210 | I18: 14 | M18: 14 | N18: 14 | R18: 70 | V18: 70 | W18: 70
A19: 17 | B19: 59 | C19: Teddy Cranmer | D19: North Hanover, NJ | F19: =SUM(P19+Q19+R19+S19+T19+U19+V19+W19) -> 176 | G19: 3 | H19: 8 | P19: 94 | Q19: 82
A20: 18 | B20: 51W | C20: Josh Langille | D20: Coldbrook, NS | F20: =SUM(P20+Q20+R20+S20+T20+U20+V20+W20) -> 156 | K20: 13 | L20: 7 | T20: 72 | U20: 84
A21: 19 | B21: 31 | C21: Cole Bruce | D21: Fredericksburg, VA | F21: =SUM(P21+Q21+R21+S21+T21+U21+V21+W21) -> 146 | K21: 10 | L21: 15 | T21: 78 | U21: 68
A22: 20 | B22: 00 | C22: Raven Lewis | D22: Concord, NC | F22: =SUM(P22+Q22+R22+S22+T22+U22+V22+W22) -> 86 | G22: 6 | P22: 86
A23: 21 | B23: 3 | C23: Autumn Weaver | D23: Sutfolk, VA | F23: =SUM(P23+Q23+R23+S23+T23+U23+V23+W23) -> 84 | G23: 7 | P23: 84
A24: 22 | B24: 6S | C24: Jake Waltman | D24: Aldie, VA | F24: =SUM(P24+Q24+R24+S24+T24+U24+V24+W24) -> 78 | I24: 10 | R24: 78
A25: 23 | F25: =SUM(P25+Q25+R25+S25+T25+U25+V25+W25) -> 0
A26: 24 | F26: 0
A27: 25 | F27: 0
F28: 0
A29: *Ties will be broken by: 1) number of wins, 2) number of 2nd places, 3) number of third place finishes, etc., until the tie is broken).

Sheet Young Lions
A1: YOUNG LION - 2017 WINTER HEAT POINTS
A2: CHAMPIONSHIP STANDING | B2: CAR NUMBER | C2: DRIVERS NAME | D2: HOME TOWN | F2: TOTAL POINTS | G2: 12/03/16 FINISH | H2: 12/10/16 FINISH | I2: 01/14/17 FINISH | J2: 01/21/17 FINISH | K2: 01/21/17 FINISH | L2: 01/28/17 FINISH | M2: 01/29/17 FINISH | N2: 02/04/17 FINISH | P2: 12/03/16 FINISH | Q2: 12/10/16 FINISH | R2: 01/14/17 FINISH | S2: 01/21/17 FINISH | T2: 01/21/17 FINISH | U2: 01/28/17 FINISH | V2: 01/29/17 FINISH | W2: 02/04/17 FINISH
A3: 1 | B3: 22W | C3: Sam Mayer | D3: Franklin, WI | F3: =SUM(P3+Q3+R3+S3+T3+U3+V3+W3) -> 682 | G3: 12 | H3: 4 | I3: 1 | J3: 1 | K3: 3 | L3: 1 | M3: 2 | N3: 1 | P3: 0 | Q3: 91 | R3: 100 | S3: 100 | T3: 94 | U3: 100 | V3: 97 | W3: 100
A4: 2 | B4: 9 | C4: Ashton Higgins | D4: Weaverville, NC | F4: =SUM(P4+Q4+R4+S4+T4+U4+V4+W4) -> 682 | G4: 1 | H4: 1 | I4: 14 | J4: 2 | K4: 4 | L4: 2 | M4: 1 | N4: 2 | P4: 100 | Q4: 100 | R4: 0 | S4: 97 | T4: 91 | U4: 97 | V4: 100 | W4: 97
A5: 3 | B5: 11D | C5: Johnny Dessler | D5: Cucamonga, CA | F5: =SUM(P5+Q5+R5+S5+T5+U5+V5+W5) -> 667 | G5: 2 | H5: 2 | I5: 3 | J5: 4 | K5: 1 | L5: 3 | M5: 3 | N5: 14 | P5: 97 | Q5: 97 | R5: 94 | S5: 91 | T5: 100 | U5: 94 | V5: 94 | W5: 0
A6: 4 | B6: 22 | C6: William Robusto | D6: Fort Mill, SC | F6: =SUM(P6+Q6+R6+S6+T6+U6+V6+W6) -> 601 | H6: 14 | I6: 4 | J6: 6 | K6: 2 | L6: 8 | M6: 7 | N6: 4 | Q6: 70 | R6: 91 | S6: 86 | T6: 97 | U6: 82 | V6: 84 | W6: 91
A7: 5 | B7: 44 | C7: Joshua Kossek | D7: Tobaccoville, NC | F7: =SUM(P7+Q7+R7+S7+T7+U7+V7+W7) -> 601 | G7: 3 | H7: 3 | I7: 12 | J7: 7 | K7: 9 | L7: 4 | M7: 10 | N7: 9 | P7: 94 | Q7: 94 | R7: 0 | S7: 84 | T7: 80 | U7: 91 | V7: 78 | W7: 80
A8: 6 | B8: 55 | C8: Isabella Robusto | D8: Fort Mill, SC | F8: =SUM(P8+Q8+R8+S8+T8+U8+V8+W8) -> 586 | H8: 8 | I8: 7 | J8: 8 | K8: 6 | L8: 6 | M8: 8 | N8: 7 | Q8: 82 | R8: 84 | S8: 82 | T8: 86 | U8: 86 | V8: 82 | W8: 84
A9: 7 | B9: 11 | C9: Gracie Trotter | D9: Denver, NC | F9: =SUM(P9+Q9+R9+S9+T9+U9+V9+W9) -> 568 | G9: 10 | I9: 6 | J9: 5 | K9: 7 | L9: 5 | M9: 11 | N9: 15 | P9: 78 | R9: 86 | S9: 88 | T9: 84 | U9: 88 | V9: 76 | W9: 68
A10: 8 | B10: 24 | C10: Bryson Ruff | D10: Indian Trail, NC | F10: =SUM(P10+Q10+R10+S10+T10+U10+V10+W10) -> 560 | G10: 7 | H10: 10 | I10: 11 | J10: 9 | K10: 8 | L10: 10 | M10: 14 | N10: 8 | P10: 84 | Q10: 78 | R10: 76 | S10: 80 | T10: 82 | U10: 78 | V10: 0 | W10: 82
A11: 9 | B11: 90 | C11: Daniel Wilk | D11: Pineville, NC | F11: =SUM(P11+Q11+R11+S11+T11+U11+V11+W11) -> 458 | G11: 5 | H11: 5 | I11: 2 | M11: 4 | N11: 3 | P11: 88 | Q11: 88 | R11: 97 | V11: 91 | W11: 94
A12: 10 | B12: 12 | C12: Sammy Smith | D12: Johnston, Ia | F12: =SUM(P12+Q12+R12+S12+T12+U12+V12+W12) -> 456 | H12: 12 | J12: 10 | K12: 10 | L12: 11 | M12: 13 | N12: 10 | Q12: 74 | S12: 78 | T12: 78 | U12: 76 | V12: 72 | W12: 78
A13: 11 | B13: 35 | C13: Carson Kvapil | D13: Mooresville, NC | F13: =SUM(P13+Q13+R13+S13+T13+U13+V13+W13) -> 446 | I13: 5 | J13: 3 | K13: 5 | M13: 5 | N13: 5 | R13: 88 | S13: 94 | T13: 88 | V13: 88 | W13: 88
A14: 12 | B14: 20 | C14: Harrison Halder | D14: Cumming, GA | F14: =SUM(P14+Q14+R14+S14+T14+U14+V14+W14) -> 422 | H14: 7 | I14: 8 | L14: 7 | M14: 6 | N14: 6 | Q14: 84 | R14: 82 | U14: 84 | V14: 86 | W14: 86
A15: 13 | B15: 18 | C15: Ryan Heim | D15: Parkertown, NJ | F15: =SUM(P15+Q15+R15+S15+T15+U15+V15+W15) -> 238 | G15: 6 | I15: 10 | L15: 12 | M15: 9 | P15: 86 | R15: 78 | U15: 74
A16: 14 | B16: 32 | C16: Tristan Lesik | D16: Lancaster, SC | F16: =SUM(P16+Q16+R16+S16+T16+U16+V16+W16) -> 236 | I16: 9 | L16: 9 | M16: 12 | N16: 11 | R16: 80 | U16: 80 | W16: 76
A17: 15 | B17: 84 | C17: Roy Hayes | D17: Concord, NC | F17: =SUM(P17+Q17+R17+S17+T17+U17+V17+W17) -> 166 | G17: 9 | H17: 6 | P17: 80 | Q17: 86
A18: 16 | B18: 39 | C18: Liz Montgomery | D18: Charlotte, NC | F18: =SUM(P18+Q18+R18+S18+T18+U18+V18+W18) -> 162 | G18: 8 | H18: 9 | P18: 82 | Q18: 80
A19: 17 | B19: 28 | C19: Timothy Watson | F19: =SUM(P19+Q19+R19+S19+T19+U19+V19+W19) -> 148 | G19: 11 | H19: 13 | P19: 76 | Q19: 72
A20: 18 | B20: 4 | C20: Holt Halder | D20: Cumming, GA | F20: =SUM(P20+Q20+R20+S20+T20+U20+V20+W20) -> 144 | I20: 13 | N20: 13 | R20: 72 | W20: 72
A21: 19 | B21: 29 | C21: DJ Canipe | D21: Fallston, NC | F21: =SUM(P21+Q21+R21+S21+T21+U21+V21+W21) -> 91 | G21: 4 | P21: 91
A22: 20 | B22: 14 | C22: Steven Chapman | D22: Ellington, CT | F22: =SUM(P22+Q22+R22+S22+T22+U22+V22+W22) -> 76 | H22: 11 | Q22: 76
A23: 21 | B23: 77 | C23: Jason Alder | D23: Cooksville, MD | F23: =SUM(P23+Q23+R23+S23+T23+U23+V23+W23) -> 74 | N23: 12 | W23: 74
A24: 22 | B24: 84 | C24: ??? | D24: ??? | F24: =SUM(P24+Q24+R24+S24+T24+U24+V24+W24) -> 72 | L24: 13 | M24: 15 | U24: 72
A25: 23 | B25: 15 | C25: JR Weidman | D25: Mt. Pleasant, NC | F25: =SUM(P25+Q25+R25+S25+T25+U25+V25+W25) -> 68 | I25: 15 | R25: 68
A26: 24 | F26: =SUM(P26+Q26+R26+S26+T26+U26+V26+W26) -> 0
A27: 25 | F27: 0
A28: *Ties will be broken by: 1) number of wins, 2) number of 2nd places, 3) number of third place finishes, etc., until the tie is broken).

Sheet Semi Pro
A1: SEMI PRO - 2017 WINTER HEAT POINTS
A2: CHAMPIONSHIP STANDING | B2: CAR NUMBER | C2: DRIVERS NAME | D2: HOME TOWN | F2: TOTAL POINTS | G2: 12/03/16 FINISH | H2: 12/10/16 FINISH | I2: 01/14/17 FINISH | J2: 01/21/17 FINISH | K2: 01/21/17 FINISH | L2: 01/28/17 FINISH | M2: 01/29/17 FINISH | N2: 02/04/17 FINISH | P2: 12/03/16 FINISH | Q2: 12/10/16 FINISH | R2: 01/14/17 FINISH | S2: 01/21/17 FINISH | T2: 01/21/17 FINISH | U2: 01/28/17 FINISH | V2: 01/29/17 FINISH | W2: 02/04/17 FINISH
A3: 1 | B3: 23 | C3: Bronson Butcher | D3: Huntersville, NC | F3: =SUM(P3+Q3+R3+S3+T3+U3+V3+W3) -> 662 | G3: 3 | I3: 1 | J3: 1 | K3: 1 | L3: 1 | M3: 1 | N3: 15 | P3: 94 | R3: 100 | S3: 100 | T3: 100 | U3: 100 | V3: 100 | W3: 68
A4: 2 | B4: 40 | C4: Garrett Biggers | D4: Charlotte, NC | F4: =SUM(P4+Q4+R4+S4+T4+U4+V4+W4) -> 623 | G4: 8 | H4: 5 | I4: 4 | J4: 6 | K4: 5 | L4: 5 | M4: 15 | N4: 1 | P4: 82 | Q4: 88 | R4: 91 | S4: 86 | T4: 88 | U4: 88 | V4: 0 | W4: 100
A5: 3 | B5: 95 | C5: Jacob Heafner | D5: Dallas, NC | F5: =SUM(P5+Q5+R5+S5+T5+U5+V5+W5) -> 618 | G5: 1 | I5: 2 | J5: 3 | K5: 9 | L5: 2 | M5: 14 | N5: 9 | P5: 100 | R5: 97 | S5: 94 | T5: 80 | U5: 97 | V5: 70 | W5: 80
A6: 4 | B6: 27 | C6: Glenn Korner | D6: Bloomfield, CT | F6: =SUM(P6+Q6+R6+S6+T6+U6+V6+W6) -> 558 | I6: 3 | J6: 4 | K6: 2 | L6: 4 | M6: 4 | N6: 3 | R6: 94 | S6: 91 | T6: 97 | U6: 91 | V6: 91 | W6: 94
A7: 5 | B7: 97 | C7: Nate Tretow | D7: Concord, NC | F7: =SUM(P7+Q7+R7+S7+T7+U7+V7+W7) -> 520 | I7: 9 | J7: 2 | K7: 3 | L7: 7 | M7: 12 | N7: 4 | R7: 80 | S7: 97 | T7: 94 | U7: 84 | V7: 74 | W7: 91
A8: 6 | B8: 14M | C8: Vincent Midas | D8: Catawba, NC | F8: =SUM(P8+Q8+R8+S8+T8+U8+V8+W8) -> 513 | G8: 2 | H8: 7 | I8: 6 | J8: 5 | K8: DQ | L8: 8 | M8: 11 | N8: 11 | P8: 97 | Q8: 84 | R8: 86 | S8: 88 | T8: 0 | U8: 82 | V8: 0 | W8: 76
A9: 7 | B9: 19 | C9: Alex Urbina | D9: Concord, NC | F9: =SUM(P9+Q9+R9+S9+T9+U9+V9+W9) -> 500 | I9: 7 | J9: 7 | K9: 8 | L9: 9 | M9: 7 | N9: 6 | R9: 84 | S9: 84 | T9: 82 | U9: 80 | V9: 84 | W9: 86
A10: 8 | B10: 1 | C10: Jessica Dana | D10: Olympia, WA | F10: =SUM(P10+Q10+R10+S10+T10+U10+V10+W10) -> 483 | I10: 12 | J10: 9 | K10: 4 | L10: 17 | M10: 5 | N10: 7 | R10: 74 | S10: 80 | T10: 91 | U10: 66 | V10: 88 | W10: 84
A11: 9 | B11: 14O | C11: Ryo Ogata | D11: Troutman, NC | F11: =SUM(P11+Q11+R11+S11+T11+U11+V11+W11) -> 465 | G11: 4 | J11: 10 | K11: 6 | L11: 18 | M11: 16 | N11: 10 | P11: 91 | S11: 78 | T11: 86 | U11: 65 | V11: 67 | W11: 78
A12: 10 | B12: 9W | C12: Hudson Halder | D12: Cumming, GA | F12: =SUM(P12+Q12+R12+S12+T12+U12+V12+W12) -> 454 | H12: 6 | I12: 5 | L12: 6 | M12: 2 | N12: 2 | Q12: 86 | R12: 88 | U12: 86 | V12: 97 | W12: 97
A13: 11 | B13: 10 | C13: Jack Fread | D13: Cornelius, NC | F13: =SUM(P13+Q13+R13+S13+T13+U13+V13+W13) -> 336 | G13: 5 | H13: 8 | J13: 8 | K13: 7 | P13: 88 | Q13: 82 | S13: 82 | T13: 84
A14: 12 | B14: 49 | C14: Carson Poindexter | D14: Huntersville, NC | F14: =SUM(P14+Q14+R14+S14+T14+U14+V14+W14) -> 290 | I14: 11 | J14: 11 | L14: 15 | N14: 14 | R14: 76 | S14: 76 | U14: 68 | W14: 70
A15: 13 | B15: 00 | C15: Craig Biryla | D15: Waxhaw, NC | F15: =SUM(P15+Q15+R15+S15+T15+U15+V15+W15) -> 246 | L15: 10 | M15: 6 | N15: 8 | U15: 78 | V15: 86 | W15: 82
A16: 14 | B16: 18 | C16: Charles Mosack | F16: =SUM(P16+Q16+R16+S16+T16+U16+V16+W16) -> 222 | L16: 14 | M16: 9 | N16: 13 | U16: 70 | V16: 80 | W16: 72
A17: 15 | B17: 83 | C17: Caleb Day | D17: Garner, NC | F17: =SUM(P17+Q17+R17+S17+T17+U17+V17+W17) -> 222 | L17: 11 | M17: 13 | N17: 12 | U17: 76 | V17: 72 | W17: 74
A18: 16 | B18: 51 | C18: Yann Zimmer | F18: =SUM(P18+Q18+R18+S18+T18+U18+V18+W18) -> 188 | L18: 3 | M18: 3 | U18: 94 | V18: 94
A19: 17 | B19: 17 | C19: Scott Joy | D19: Lewisville, NC | F19: =SUM(P19+Q19+R19+S19+T19+U19+V19+W19) -> 170 | I19: 8 | N19: 5 | R19: 82 | W19: 88
A20: 18 | B20: 13 | C20: Wes Burton | D20: Concord, NC | F20: =SUM(P20+Q20+R20+S20+T20+U20+V20+W20) -> 156 | L20: 12 | M20: 8 | U20: 74 | V20: 82
A21: 19 | B21: 110 | C21: Kade Lambert | D21: Graham, NC | F21: =SUM(P21+Q21+R21+S21+T21+U21+V21+W21) -> 145 | L21: 16 | M21: 10 | U21: 67 | V21: 78
A22: 20 | B22: 87 | C22: Zack Miller | D22: South Charleston, OH | F22: =SUM(P22+Q22+R22+S22+T22+U22+V22+W22) -> 100 | H22: 1 | Q22: 100
A23: 21 | B23: 98 | C23: Jake Tretow | D23: Concord, NC | F23: =SUM(P23+Q23+R23+S23+T23+U23+V23+W23) -> 97 | H23: 2 | Q23: 97
A24: 22 | B24: 7 | C24: Ryan Miller | D24: South Charleston, OH | F24: =SUM(P24+Q24+R24+S24+T24+U24+V24+W24) -> 94 | H24: 3 | Q24: 94
A25: 23 | B25: 9 | C25: Donald Buell | D25: Corry, PA | F25: =SUM(P25+Q25+R25+S25+T25+U25+V25+W25) -> 91 | H25: 4 | Q25: 91
A26: 24 | B26: 00S | C26: Andrew Dollar | D26: Atlanta, GA | F26: =SUM(P26+Q26+R26+S26+T26+U26+V26+W26) -> 86 | G26: 6 | P26: 86
A27: 25 | B27: 7 | C27: Dustin McClure | F27: =SUM(P27+Q27+R27+S27+T27+U27+V27+W27) -> 84 | G27: 7 | P27: 84
A28: 26 | B28: 25 | C28: Christopher Clanton | D28: Brooks, GA | F28: =SUM(P28+Q28+R28+S28+T28+U28+V28+W28) -> 80 | G28: 9 | P28: 80
A29: 27 | B29: 17 | C29: Aaron Gaddy | D29: King, NC | F29: =SUM(P29+Q29+R29+S29+T29+U29+V29+W29) -> 72 | L29: 13 | U29: 72
A31: *Ties will be broken by: 1) number of wins, 2) number of 2nd places, 3) number of third place finishes, etc., until the tie is broken).

Sheet Masters
A1: MASTER - 2017 WINTER HEAT POINTS
A2: CHAMPIONSHIP STANDING | B2: CAR NUMBER | C2: DRIVERS NAME | D2: HOME TOWN | F2: TOTAL POINTS | G2: 12/03/16 FINISH | H2: 12/10/16 FINISH | I2: 01/14/17 FINISH | J2: 01/21/17 FINISH | K2: 01/21/17 FINISH | L2: 01/28/17 FINISH | M2: 01/29/17 FINISH | N2: 02/04/17 FINISH | P2: 12/03/16 FINISH | Q2: 12/10/16 FINISH | R2: 01/14/17 FINISH | S2: 01/21/17 FINISH | T2: 01/21/17 FINISH | U2: 01/28/17 FINISH | V2: 01/29/17 FINISH | W2: 02/04/17 FINISH
A3: 1 | B3: 58 | C3: Carl Cormier | D3: Davidson, NC | F3: =SUM(P3+Q3+R3+S3+T3+U3+V3+W3) -> 594 | I3: 2 | J3: 1 | K3: 1 | L3: 2 | M3: 1 | N3: 1 | R3: 97 | S3: 100 | T3: 100 | U3: 97 | V3: 100 | W3: 100
A4: 2 | B4: 50 | C4: Todd Midas | D4: Catawba, NC | F4: =SUM(P4+Q4+R4+S4+T4+U4+V4+W4) -> 573 | G4: 1 | H4: 1 | I4: 6 | J4: 2 | K4: 3 | L4: 4 | M4: DQ | N4: 4 | P4: 100 | Q4: 100 | R4: 0 | S4: 97 | T4: 94 | U4: 91 | V4: 0 | W4: 91
A5: 3 | B5: 22 | C5: Dwayne Holder | D5: Midland, NC | F5: =SUM(P5+Q5+R5+S5+T5+U5+V5+W5) -> 538 | G5: 2 | H5: 4 | I5: 5 | L5: 7 | M5: 3 | N5: 7 | P5: 97 | Q5: 91 | R5: 88 | U5: 84 | V5: 94 | W5: 84
A6: 4 | B6: 53 | C6: Bruce Silver | D6: Davidson, NC | F6: =SUM(P6+Q6+R6+S6+T6+U6+V6+W6) -> 531 | G6: 5 | I6: 3 | J6: 5 | K6: 2 | L6: 10 | M6: 6 | P6: 88 | R6: 94 | S6: 88 | T6: 97 | U6: 78 | V6: 86
A7: 5 | B7: 42 | C7: Brad Green | D7: Matthews, NC | F7: =SUM(P7+Q7+R7+S7+T7+U7+V7+W7) -> 441 | I7: 7 | J7: 3 | K7: 4 | L7: 5 | M7: 7 | R7: 84 | S7: 94 | T7: 91 | U7: 88 | V7: 84
A8: 6 | B8: 9 | C8: Bob Conner | D8: Stafford, VA | F8: =SUM(P8+Q8+R8+S8+T8+U8+V8+W8) -> 436 | I8: 4 | J8: 4 | K8: 5 | L8: 6 | M8: 9 | R8: 91 | S8: 91 | T8: 88 | U8: 86 | V8: 80
A9: 7 | B9: 55 | C9: Dean Bonessi | D9: Hendersonville, NC | F9: =SUM(P9+Q9+R9+S9+T9+U9+V9+W9) -> 259 | G9: 4 | I9: 8 | N9: 6 | P9: 91 | R9: 82 | W9: 86
A10: 8 | B10: 12 | C10: Beard McCauley | D10: Huntersville, NC | F10: =SUM(P10+Q10+R10+S10+T10+U10+V10+W10) -> 246 | J10: 6 | K10: 6 | L10: 12 | S10: 86 | T10: 86 | U10: 74
A11: 9 | B11: 4 | C11: Neal Halder | D11: Cumming, GA | F11: =SUM(P11+Q11+R11+S11+T11+U11+V11+W11) -> 246 | L11: 11 | M11: 8 | N11: 5 | U11: 76 | V11: 82 | W11: 88
A12: 10 | B12: 20 | C12: Mark Green | D12: China Grove, NC | F12: =SUM(P12+Q12+R12+S12+T12+U12+V12+W12) -> 200 | I12: 1 | L12: 1 | R12: 100 | U12: 100
A13: 11 | B13: 399 | C13: Bob Weymouth | D13: Topsham, ME | F13: =SUM(P13+Q13+R13+S13+T13+U13+V13+W13) -> 191 | L13: 3 | M13: 2 | U13: 94 | V13: 97
A14: 12 | B14: 13 | C14: Timothy Brockhouse | D14: Savage, MN | F14: =SUM(P14+Q14+R14+S14+T14+U14+V14+W14) -> 173 | L14: 8 | M14: 4 | U14: 82 | V14: 91
A15: 13 | B15: 36 | C15: Craig Bruce | D15: Newmarket, ONT | F15: =SUM(P15+Q15+R15+S15+T15+U15+V15+W15) -> 168 | L15: 9 | M15: 5 | U15: 80 | V15: 88
A16: 14 | B16: 21 | C16: Karl Moberg | D16: Titusville, FL | F16: =SUM(P16+Q16+R16+S16+T16+U16+V16+W16) -> 97 | H16: 2 | Q16: 97
A17: 15 | B17: 2 | C17: David Green | D17: Concord, NC | F17: =SUM(P17+Q17+R17+S17+T17+U17+V17+W17) -> 97 | N17: 2 | W17: 97
A18: 16 | B18: 14 | C18: Jeffery Lefcourt | D18: River Vale, NJ | F18: =SUM(P18+Q18+R18+S18+T18+U18+V18+W18) -> 94 | G18: 3 | P18: 94
A19: 17 | B19: 33 | C19: Scott Wessel | D19: Joanna, SC | F19: =SUM(P19+Q19+R19+S19+T19+U19+V19+W19) -> 94 | H19: 3 | Q19: 94
A20: 18 | B20: 48 | C20: Tim Ladyga | D20: Concord, NC | F20: =SUM(P20+Q20+R20+S20+T20+U20+V20+W20) -> 94 | N20: 3 | W20: 94
A21: 19 | B21: 21B | C21: Joel Carlyle | D21: Marshallberg, NC | F21: =SUM(P21+Q21+R21+S21+T21+U21+V21+W21) -> 88 | H21: 5 | Q21: 88
A22: *Ties will be broken by: 1) number of wins, 2) number of 2nd places, 3) number of third place finishes, etc., until the tie is broken).

Sheet Pro
A1: PRO - 2017 WINTER HEAT POINTS
A2: CHAMPIONSHIP STANDING | B2: CAR NUMBER | C2: DRIVERS NAME | D2: HOME TOWN | F2: TOTAL POINTS | G2: 12/03/16 FINISH | H2: 12/10/16 FINISH | I2: 01/14/17 FINISH | J2: 01/21/17 FINISH | K2: 01/21/17 FINISH | L2: 01/28/17 FINISH | M2: 01/29/17 FINISH | N2: 02/04/17 FINISH | P2: 12/03/16 FINISH | Q2: 12/10/16 FINISH | R2: 01/14/17 FINISH | S2: 01/21/17 FINISH | T2: 01/21/17 FINISH | U2: 01/28/17 FINISH | V2: 01/29/17 FINISH | W2: 02/04/17 FINISH
A3: 1 | B3: 48 | C3: Austin Green | D3: Concord, NC | F3: =SUM(P3+Q3+R3+S3+T3+U3+V3+W3) -> 688 | G3: 1 | H3: 5 | I3: 2 | J3: 2 | K3: 3 | L3: 1 | M3: 1 | N3: 1 | P3: 100 | Q3: 0 | R3: 97 | S3: 97 | T3: 94 | U3: 100 | V3: 100 | W3: 100
A4: 2 | B4: 77 | C4: Giovanni Bromante | D4: Locust Valley, NY | F4: =SUM(P4+Q4+R4+S4+T4+U4+V4+W4) -> 545 | G4: 3 | H4: 7 | J4: 4 | K4: 2 | L4: 4 | M4: 5 | P4: 94 | Q4: 84 | S4: 91 | T4: 97 | U4: 91 | V4: 88
A5: 3 | B5: 31 | C5: Noah Korner | D5: Bloomfield, CT | F5: =SUM(P5+Q5+R5+S5+T5+U5+V5+W5) -> 534 | I5: 1 | J5: 3 | K5: 4 | L5: 8 | M5: 11 | N5: 4 | R5: 100 | S5: 94 | T5: 91 | U5: 82 | V5: 76 | W5: 91
A6: 4 | B6: 00 | C6: Carson Ferguson | D6: Charlotte, NC | F6: =SUM(P6+Q6+R6+S6+T6+U6+V6+W6) -> 288 | G6: 2 | H6: 2 | I6: 3 | P6: 97 | Q6: 97 | R6: 94
A7: 5 | B7: 12 | C7: Dillon Faggart | D7: Concord, NC | F7: =SUM(P7+Q7+R7+S7+T7+U7+V7+W7) -> 268 | I7: 5 | L7: 6 | M7: 3 | R7: 88 | U7: 86 | V7: 94
A8: 6 | B8: 4H | C8: John Holleman | D8: Winston Salem, NC | F8: =SUM(P8+Q8+R8+S8+T8+U8+V8+W8) -> 258 | L8: 7 | M8: 6 | N8: 5 | U8: 84 | V8: 86 | W8: 88
A9: 7 | B9: 116 | C9: Alex Pacheco | D9: Concord, NC | F9: =SUM(P9+Q9+R9+S9+T9+U9+V9+W9) -> 248 | I9: 6 | L9: 5 | M9: 12 | R9: 86 | U9: 88 | V9: 74
A10: 8 | B10: 52 | C10: Jordan Stillwell | D10: Kannapolis, NC | F10: =SUM(P10+Q10+R10+S10+T10+U10+V10+W10) -> 248 | L10: 9 | M10: 8 | N10: 6 | U10: 80 | V10: 82 | W10: 86
A11: 9 | B11: 21 | C11: Colin Braun | F11: =SUM(P11+Q11+R11+S11+T11+U11+V11+W11) -> 200 | J11: 1 | K11: 1 | S11: 100 | T11: 100
A12: 10 | B12: 9W | C12: Jordan Black | D12: Long Wood, FL | F12: =SUM(P12+Q12+R12+S12+T12+U12+V12+W12) -> 191 | M12: 2 | N12: 3 | V12: 97 | W12: 94
A13: 11 | B13: 34 | C13: Nolan Pope | D13: Harrisonville, MO | F13: =SUM(P13+Q13+R13+S13+T13+U13+V13+W13) -> 191 | G13: 4 | H13: 1 | P13: 91 | Q13: 100
A14: 12 | B14: 860 | C14: Emil Perrson | D14: Uarlshoga, SWE | F14: =SUM(P14+Q14+R14+S14+T14+U14+V14+W14) -> 185 | L14: 3 | M14: 4 | U14: 94 | V14: 91
A15: 13 | B15: 3 | C15: Michael Womack | D15: Fallbrook, CA | F15: =SUM(P15+Q15+R15+S15+T15+U15+V15+W15) -> 182 | H15: 4 | I15: 4 | Q15: 91 | R15: 91
A16: 14 | B16: 24 | C16: Matt Mead | D16: Erie, PA | F16: =SUM(P16+Q16+R16+S16+T16+U16+V16+W16) -> 180 | G16: 6 | H16: 3 | P16: 86 | Q16: 94
A17: 15 | B17: 116 | C17: Steven Cantrell | D17: Concord, NC | F17: =SUM(P17+Q17+R17+S17+T17+U17+V17+W17) -> 176 | J17: 5 | K17: 5 | S17: 88 | T17: 88
A18: 16 | B18: 140 | C18: Jordan O'Brien | D18: Yarmouth, ME | F18: =SUM(P18+Q18+R18+S18+T18+U18+V18+W18) -> 175 | L18: 2 | M18: 10 | U18: 97 | V18: 78
A19: 17 | B19: 43 | C19: Brody Pope | D19: Harrisonville, MO | F19: =SUM(P19+Q19+R19+S19+T19+U19+V19+W19) -> 174 | G19: 5 | H19: 6 | P19: 88 | Q19: 86
A20: 18 | B20: 4 | C20: Troy Hoff | D20: Flasher, ND | F20: =SUM(P20+Q20+R20+S20+T20+U20+V20+W20) -> 158 | L20: 10 | M20: 9 | U20: 78 | V20: 80
A21: 19 | B21: 23 | C21: Bronson Butcher | D21: Huntersville, NC | F21: =SUM(P21+Q21+R21+S21+T21+U21+V21+W21) -> 97 | N21: 2 | W21: 97
A22: 20 | B22: 56 | C22: Gus Dean | D22: Mooresville, NC | F22: =SUM(P22+Q22+R22+S22+T22+U22+V22+W22) -> 84 | M22: 7 | V22: 84
A23: 21 | B23: 84 | C23: Kyle Beattie | D23: Locust, NC | F23: =SUM(P23+Q23+R23+S23+T23+U23+V23+W23) -> 84 | G23: 7 | P23: 84
A24: 22 | B24: 3A | C24: Drew Brown | D24: Greenville, SC | F24: =SUM(P24+Q24+R24+S24+T24+U24+V24+W24) -> 76 | L24: 11 | U24: 76
A25: *Ties will be broken by: 1) number of wins, 2) number of 2nd places, 3) number of third place finishes, etc., until the tie is broken).
